[Event "10th LBHM Open 2024"]
[Site "Pune"]
[Date "2024.05.21"]
[Round "7.4"]
[White "Dere Pushkar"]
[Black "Agnivo Chakraborty"]
[Result "1-0"]
[ECO "B22"]
[WhiteElo "2209"]
[BlackElo "1871"]
[PlyCount "111"]
[EventDate "2024.05.21"]
[EventType "swiss"]
[EventCountry "IND"]
[TimeControl "5400+30"]

1. e4 {[%emt 0:09:33]} c5 {[%emt 0:00:03]} 2. Nf3 {[%emt 0:00:56]} a6 {[%emt 0:00:05]} 3. c3 {[%emt 0:00:08]} e6 {[%emt 0:00:04]} 4. d4 {[%emt 0:00:15]} d5 {[%emt 0:00:06]} 5. exd5 {[%emt 0:02:49]} exd5 {[%emt 0:00:06]} 6. Bd3 {[%emt 0:00:05]} c4 {[%emt 0:00:05]} 7. Bc2 {[%emt 0:00:03]} Bd6 {[%emt 0:00:06]} 8. O-O {[%emt 0:00:33]} Ne7 {[%emt 0:00:06]} 9. Ne5 {[%emt 0:02:08]} Bxe5 {[%emt 0:01:02]} 10. dxe5 {[%emt 0:00:05]} Nbc6 {[%emt 0:00:55]} 11. Qh5 {[%emt 0:07:32]} Qc7 {[%emt 0:06:58]} 12. Re1 {[%emt 0:04:31]} Be6 {[%emt 0:01:36]} 13. Nd2 {[%emt 0:02:15]} O-O-O {[%emt 0:04:45]} 14. b3 {[%emt 0:09:04]} Ng6 {[%emt 0:12:33]} 15. Nf3 {[%emt 0:02:47]} d4 {[%emt 0:08:57]} 16. cxd4 {[%emt 0:02:40]} Nxd4 17. Nxd4 {[%emt 0:02:30]} Rxd4 {[%emt 0:02:36]} 18. Bxg6 {[%emt 0:02:51]} fxg6 {[%emt 0:00:18]} 19. Qe2 {[%emt 0:01:49]} Qa5 {[%emt 0:08:17]} 20. Be3 {[%emt 0:02:10]} Re4 {[%emt 0:03:05]} 21. bxc4 {[%emt 0:04:02]} Qxe5 {[%emt 0:01:43]} 22. Rac1 {[%emt 0:05:08]} Re8 {[%emt 0:02:12]} 23. c5 {[%emt 0:06:14]} Bd5 {[%emt 0:03:05]} 24. Red1 {[%emt 0:11:10]} Qe6 {[%emt 0:06:52]} 25. h3 {[%emt 0:04:17]} Ra4 {[%emt 0:04:16]} 26. Qd3 {[%emt 0:05:44]} Rd8 {[%emt 0:03:00]} 27. c6 {[%emt 0:01:10]} bxc6 {[%emt 0:01:29]} 28. Bg5 {[%emt 0:00:49]} Rd7 {[%emt 0:03:50]} 29. Re1 {[%emt 0:00:38]} Qf7 {[%emt 0:01:35]} 30. Qg3 {[%emt 0:00:06]} Re4 {[%emt 0:05:50]} 31. Rxe4 {[%emt 0:02:28]} Bxe4 {[%emt 0:00:07]} 32. Qa3 {[%emt 0:00:08]} Qf5 {[%emt 0:04:14]} 33. Qxa6+ {[%emt 0:00:16]} Rb7 {[%emt 0:00:11]} 34. Qa8+ {[%emt 0:00:51]} Rb8 {[%emt 0:00:55]} 35. Qa6+ {[%emt 0:00:16]} Rb7 {[%emt 0:01:19]} 36. Be3 {[%emt 0:01:39]} Bd5 {[%emt 0:01:47]} 37. f3 {[%emt 0:01:43]} Kc7 {[%emt 0:02:30]} 38. Re1 {[%emt 0:01:37]} Rb1 {[%emt 0:02:19]} 39. Bb6+ {[%emt 0:03:19]} Rxb6 {[%emt 0:01:39]} 40. Qa7+ {[%emt 0:00:04]} Rb7 {[%emt 0:01:00]} 41. Re7+ {[%emt 0:00:04]} Kd6 {[%emt 0:00:45]} 42. Rxb7 {[%emt 0:00:24]} Qg5 {[%emt 0:01:00]} 43. Qb8+ {[%emt 0:00:54]} Ke6 {[%emt 0:01:15]} 44. Qe8+ {[%emt 0:01:49]} Kf5 {[%emt 0:01:28]} 45. Qe1 {[%emt 0:00:29]} Qf4 {[%emt 0:02:25]} 46. Rb4 {[%emt 0:01:13]} Qd6 {[%emt 0:00:48]} 47. a3 {[%emt 0:00:29]} h6 {[%emt 0:00:58]} 48. Qe3 {[%emt 0:00:28]} g5 {[%emt 0:00:26]} 49. Rb7 {[%emt 0:00:37]} Kg6 {[%emt 0:01:04]} 50. Qd3+ {[%emt 0:00:04]} Kh5 {[%emt 0:00:21]} 51. Rxg7 {[%emt 0:00:27]} Qf6 {[%emt 0:01:43]} 52. Qg6+ {[%emt 0:01:12]} Qxg6 {[%emt 0:02:41]} 53. g4+ {[%emt 0:00:01]} Kh4 {[%emt 0:00:00]} 54. Rxg6 {[%emt 0:00:03]} h5 {[%emt 0:00:00]} 55. Kh2 {[%emt 0:00:23]} Bxf3 {[%emt 0:00:00]} 56. Rh6 {[%emt 0:00:05]} 1-0

[Event "10th LBHM Open 2024"]
[Site "Pune"]
[Date "2024.05.21"]
[Round "7.5"]
[White "Bhosale Shriraj"]
[Black "Gyana Sai Santhosh M"]
[Result "1-0"]
[ECO "A08"]
[WhiteElo "2036"]
[BlackElo "1874"]
[PlyCount "61"]
[EventDate "2024.05.21"]
[EventType "swiss"]
[EventCountry "IND"]
[TimeControl "5400+30"]

1. Nf3 {[%emt 0:01:10]} Nf6 {[%emt 0:00:33]} 2. g3 {[%emt 0:00:27]} d5 {[%emt 0:00:19]} 3. Bg2 {[%emt 0:00:11]} c5 {[%emt 0:00:10]} 4. O-O {[%emt 0:00:31]} Nc6 {[%emt 0:00:13]} 5. d3 {[%emt 0:00:17]} e5 {[%emt 0:00:11]} 6. a3 {[%emt 0:05:46]} Be7 {[%emt 0:07:56]} 7. c4 {[%emt 0:00:57]} O-O {[%emt 1:24:38]} 8. cxd5 {[%emt 0:00:47]} Nxd5 {[%emt 0:00:00]} 9. b3 {[%emt 0:02:40]} Be6 {[%emt 0:00:00]} 10. Bb2 {[%emt 0:01:01]} f6 {[%emt 0:00:00]} 11. Nbd2 {[%emt 0:00:35]} Rc8 {[%emt 0:00:00]} 12. e3 {[%emt 0:01:13]} Bg4 {[%emt 0:00:00]} 13. h3 {[%emt 0:02:26]} Bh5 {[%emt 0:00:00]} 14. Rc1 {[%emt 0:01:34]} b6 {[%emt 0:00:00]} 15. Re1 {[%emt 0:08:10]} Re8 {[%emt 0:00:00]} 16. Nf1 {[%emt 0:03:48]} Bf8 {[%emt 0:00:00]} 17. g4 {[%emt 0:04:37]} Bf7 {[%emt 0:00:00]} 18. Ng3 {[%emt 0:00:38]} b5 {[%emt 0:00:00]} 19. Nd2 {[%emt 0:02:12]} a6 {[%emt 0:00:00]} 20. Be4 {[%emt 0:02:49]} Na5 {[%emt 0:00:00]} 21. Qf3 {[%emt 0:03:12]} g6 {[%emt 0:00:00]} 22. b4 {[%emt 0:06:47]} Nb7 {[%emt 0:00:00]} 23. Nb3 {[%emt 0:02:26]} Qd7 {[%emt 0:08:00]} 24. bxc5 {[%emt 0:01:08]} Nxc5 {[%emt 0:00:00]} 25. Nxc5 {[%emt 0:00:07]} Bxc5 {[%emt 0:00:00]} 26. Red1 {[%emt 0:02:08]} Be7 {[%emt 0:00:00]} 27. Rxc8 {[%emt 0:00:25]} Rxc8 {[%emt 0:00:00]} 28. d4 {[%emt 0:00:09]} exd4 {[%emt 0:00:00]} 29. Rxd4 {[%emt 0:00:22]} Rc5 {[%emt 0:00:00]} 30. Ne2 {[%emt 0:02:50]} Qe6 {[%emt 0:02:58]} 31. Bxd5 {[%emt 0:00:32]} 1-0

[Event "10th LBHM Open 2024"]
[Site "Pune"]
[Date "2024.05.21"]
[Round "7.6"]
[White "Ratnakaran, K.."]
[Black "Sree Shaunak Chanda"]
[Result "1-0"]
[ECO "C77"]
[WhiteElo "2275"]
[BlackElo "1854"]
[PlyCount "103"]
[EventDate "2024.05.21"]
[EventType "swiss"]
[EventCountry "IND"]
[TimeControl "5400+30"]

1. e4 {[%emt 0:00:02]} e5 {[%emt 0:00:09]} 2. Nf3 {[%emt 0:00:04]} Nc6 {[%emt 0:00:06]} 3. Bb5 {[%emt 0:00:02]} a6 {[%emt 0:00:13]} 4. Ba4 {[%emt 0:00:03]} Nf6 {[%emt 0:00:09]} 5. d3 {[%emt 0:00:06]} b5 {[%emt 0:00:04]} 6. Bb3 {[%emt 0:00:04]} Bc5 {[%emt 0:00:05]} 7. c3 {[%emt 0:00:05]} d6 {[%emt 0:00:03]} 8. h3 {[%emt 0:00:05]} h6 {[%emt 0:00:32]} 9. Nbd2 {[%emt 0:00:05]} O-O {[%emt 0:00:06]} 10. g4 {[%emt 0:00:04]} Be6 {[%emt 0:02:34]} 11. g5 {[%emt 0:00:14]} Nh5 {[%emt 0:07:39]} 12. d4 {[%emt 0:00:10]} exd4 {[%emt 0:10:34]} 13. cxd4 {[%emt 0:04:17]} Bxd4 {[%emt 0:04:33]} 14. Nxd4 {[%emt 0:01:12]} Nxd4 {[%emt 0:00:05]} 15. Qxh5 {[%emt 0:01:02]} Bxb3 {[%emt 0:00:02]} 16. Nxb3 {[%emt 0:02:43]} Nc2+ {[%emt 0:00:17]} 17. Kf1 {[%emt 0:00:06]} Nxa1 {[%emt 0:00:13]} 18. Nxa1 {[%emt 0:00:06]} Qe7 {[%emt 0:10:33]} 19. f3 {[%emt 0:02:35]} Qe5 {[%emt 0:04:25]} 20. Rg1 {[%emt 0:00:38]} f6 {[%emt 0:00:34]} 21. h4 {[%emt 0:01:09]} fxg5 {[%emt 0:00:14]} 22. Kg2 {[%emt 0:00:10]} d5 {[%emt 0:19:34]} 23. hxg5 {[%emt 0:00:29]} dxe4 {[%emt 0:02:06]} 24. f4 {[%emt 0:00:07]} Qd5 {[%emt 0:00:21]} 25. Qd1 {[%emt 0:02:26]} Qf5 {[%emt 0:01:25]} 26. Qb3+ {[%emt 0:04:01]} Kh7 {[%emt 0:00:19]} 27. Qh3 {[%emt 0:00:26]} Qxh3+ {[%emt 0:01:02]} 28. Kxh3 {[%emt 0:00:07]} hxg5 {[%emt 0:00:16]} 29. Rxg5 {[%emt 0:00:23]} Rad8 {[%emt 0:00:17]} 30. Nb3 {[%emt 0:01:41]} Rd3+ {[%emt 0:03:59]} 31. Kg2 {[%emt 0:01:38]} Rf6 {[%emt 0:03:46]} 32. Nc5 {[%emt 0:02:24]} Rd1 {[%emt 0:01:03]} 33. Be3 {[%emt 0:00:07]} Ra1 {[%emt 0:03:38]} 34. Nxe4 {[%emt 0:04:17]} Rc6 {[%emt 0:05:00]} 35. Bd4 {[%emt 0:02:01]} Rg6 {[%emt 0:00:24]} 36. f5 {[%emt 0:00:08]} Rxg5+ {[%emt 0:00:17]} 37. Nxg5+ {[%emt 0:00:04]} Kg8 {[%emt 0:00:04]} 38. a3 {[%emt 0:00:07]} Rd1 {[%emt 0:00:13]} 39. Ne6 {[%emt 0:00:59]} c5 {[%emt 0:01:20]} 40. Bxg7 {[%emt 0:01:37]} Rd5 {[%emt 0:00:12]} 41. f6 {[%emt 0:00:13]} Kf7 {[%emt 0:00:12]} 42. Nf4 {[%emt 0:00:08]} Rd2+ {[%emt 0:00:39]} 43. Kf3 {[%emt 0:00:05]} Rxb2 {[%emt 0:00:27]} 44. Nd3 {[%emt 0:00:12]} Rb3 {[%emt 0:01:34]} 45. Ke4 {[%emt 0:00:05]} Rxd3 {[%emt 0:06:45]} 46. Kxd3 {[%emt 0:00:08]} a5 {[%emt 0:00:08]} 47. Ke4 {[%emt 0:00:26]} a4 {[%emt 0:00:30]} 48. Kf5 {[%emt 0:00:32]} b4 {[%emt 0:02:52]} 49. Bh6 {[%emt 0:01:14]} bxa3 {[%emt 0:01:25]} 50. Bc1 {[%emt 0:00:12]} a2 {[%emt 0:00:04]} 51. Bb2 {[%emt 0:00:04]} c4 {[%emt 0:01:39]} 52. Ke5 {[%emt 0:00:18]} 1-0

[Event "10th LBHM Open 2024"]
[Site "Pune"]
[Date "2024.05.21"]
[Round "7.7"]
[White "Suhrud Sudheer Acharya K"]
[Black "Md Imran"]
[Result "0-1"]
[ECO "A06"]
[WhiteElo "1849"]
[BlackElo "2184"]
[PlyCount "56"]
[EventDate "2024.05.21"]
[EventType "swiss"]
[EventCountry "IND"]
[TimeControl "5400+30"]

1. Nf3 {[%emt 0:03:12]} c5 {[%emt 0:03:48]} 2. b3 {[%emt 0:00:30]} d5 {[%emt 0:02:12]} 3. e3 {[%emt 0:00:25]} Nf6 {[%emt 0:00:54]} 4. Bb2 {[%emt 0:00:14]} Bf5 {[%emt 0:00:20]} 5. Bb5+ {[%emt 0:02:41]} Nbd7 {[%emt 0:00:09]} 6. O-O {[%emt 0:01:09]} e6 {[%emt 0:00:11]} 7. c4 {[%emt 0:01:46]} a6 {[%emt 0:02:35]} 8. Bxd7+ {[%emt 0:00:08]} Qxd7 {[%emt 0:00:05]} 9. Ne5 {[%emt 0:09:19]} Qc7 {[%emt 0:00:16]} 10. cxd5 {[%emt 0:01:12]} Bd6 {[%emt 0:01:22]} 11. d4 {[%emt 0:04:32]} exd5 {[%emt 0:00:40]} 12. Nd2 {[%emt 0:02:18]} O-O {[%emt 0:00:06]} 13. Ndf3 {[%emt 0:00:40]} c4 {[%emt 0:00:57]} 14. Nh4 {[%emt 0:07:36]} Be6 {[%emt 0:02:36]} 15. Rc1 {[%emt 0:06:23]} b5 {[%emt 0:00:49]} 16. f4 {[%emt 0:00:19]} Ne4 {[%emt 0:00:53]} 17. f5 {[%emt 0:01:48]} Bc8 {[%emt 0:00:57]} 18. f6 {[%emt 0:03:35]} g6 {[%emt 0:04:04]} 19. Qe1 {[%emt 0:13:44]} Re8 {[%emt 0:00:58]} 20. Kh1 {[%emt 0:02:57]} Be6 {[%emt 0:01:38]} 21. g4 {[%emt 0:04:41]} b4 {[%emt 0:01:51]} 22. Nf5 {[%emt 0:08:28]} Bxf5 {[%emt 0:02:36]} 23. gxf5 {[%emt 0:01:09]} Bxe5 {[%emt 0:00:37]} 24. dxe5 {[%emt 0:01:05]} c3 {[%emt 0:00:02]} 25. fxg6 {[%emt 0:00:24]} hxg6 {[%emt 0:00:33]} 26. Qh4 {[%emt 0:11:44]} Qxe5 {[%emt 0:00:12]} 27. Ba1 {[%emt 0:08:55]} d4 {[%emt 0:00:57]} 28. exd4 {[%emt 0:00:31]} Qd5 {[%emt 1:12:12]} 0-1

[Event "10th LBHM Open 2024"]
[Site "Pune"]
[Date "2024.05.21"]
[Round "7.8"]
[White "Dave, Kantilal"]
[Black "Sharnarthi Viresh"]
[Result "0-1"]
[ECO "A05"]
[WhiteElo "1791"]
[BlackElo "2078"]
[PlyCount "62"]
[EventDate "2024.05.21"]
[EventType "swiss"]
[EventCountry "IND"]
[TimeControl "5400+30"]

1. Nf3 {[%emt 0:02:04]} Nf6 {[%emt 0:00:29]} 2. e3 {[%emt 0:00:07]} g6 {[%emt 0:00:07]} 3. b3 {[%emt 0:00:08]} Bg7 {[%emt 0:00:05]} 4. Bb2 {[%emt 0:00:12]} d6 {[%emt 0:00:10]} 5. d3 {[%emt 0:00:19]} e5 {[%emt 0:01:38]} 6. Nbd2 {[%emt 0:00:11]} O-O {[%emt 0:00:08]} 7. c4 {[%emt 0:00:17]} Ne8 {[%emt 0:02:11]} 8. Qc2 {[%emt 0:00:28]} Nc6 {[%emt 0:00:47]} 9. a3 {[%emt 0:00:37]} a5 {[%emt 0:00:05]} 10. Rc1 {[%emt 0:00:24]} f5 {[%emt 0:01:49]} 11. Bc3 {[%emt 0:05:12]} g5 {[%emt 0:08:11]} 12. b4 {[%emt 0:00:32]} axb4 {[%emt 0:02:25]} 13. axb4 {[%emt 0:00:03]} g4 {[%emt 0:00:05]} 14. Ng1 {[%emt 0:00:12]} f4 {[%emt 0:03:28]} 15. exf4 {[%emt 0:02:03]} exf4 {[%emt 0:01:02]} 16. b5 {[%emt 0:01:15]} Nd4 {[%emt 0:03:58]} 17. Qb2 {[%emt 0:01:07]} Ne6 {[%emt 0:00:21]} 18. Ne2 {[%emt 0:00:38]} Nc5 {[%emt 0:01:17]} 19. Nd4 {[%emt 0:00:30]} Qe7+ {[%emt 0:04:59]} 20. Kd1 {[%emt 0:00:16]} Na4 {[%emt 0:12:50]} 21. Qc2 {[%emt 0:00:41]} Nxc3+ {[%emt 0:08:46]} 22. Qxc3 {[%emt 0:00:09]} f3 {[%emt 0:03:35]} 23. g3 {[%emt 0:00:24]} d5 {[%emt 0:00:12]} 24. N2b3 {[%emt 0:01:55]} Nd6 {[%emt 0:00:35]} 25. Qd2 {[%emt 0:01:04]} dxc4 {[%emt 0:01:37]} 26. dxc4 {[%emt 0:00:07]} Ne4 {[%emt 0:00:03]} 27. Qe3 {[%emt 0:01:01]} Bxd4 {[%emt 0:00:27]} 28. Nxd4 {[%emt 0:00:08]} Ra3 {[%emt 0:00:05]} 29. Nb3 {[%emt 0:05:04]} Rd8+ {[%emt 0:00:04]} 30. Kc2 {[%emt 0:01:08]} Ra2+ {[%emt 0:00:04]} 31. Kb1 {[%emt 0:06:22]} Qa3 {[%emt 0:00:27]} 0-1

[Event "10th LBHM Open 2024"]
[Site "Pune"]
[Date "2024.05.21"]
[Round "7.9"]
[White "Dutta, Joydeep"]
[Black "Lakshmi Charan Naidu G"]
[Result "1-0"]
[ECO "A06"]
[WhiteElo "2073"]
[BlackElo "1850"]
[PlyCount "95"]
[EventDate "2024.05.21"]
[EventType "swiss"]
[EventCountry "IND"]
[TimeControl "5400+30"]

1. Nf3 {[%emt 0:03:51]} c5 {[%emt 0:00:44]} 2. b3 {[%emt 0:00:52]} d5 {[%emt 0:02:09]} 3. Bb2 {[%emt 0:00:19]} Nf6 {[%emt 0:01:55]} 4. e3 {[%emt 0:01:40]} Bf5 {[%emt 0:03:53]} 5. Be2 {[%emt 0:01:18]} h6 {[%emt 0:02:47]} 6. O-O {[%emt 0:02:40]} e6 {[%emt 0:00:39]} 7. c4 {[%emt 0:08:58]} Be7 {[%emt 0:10:16]} 8. cxd5 {[%emt 0:04:54]} exd5 {[%emt 0:00:06]} 9. d4 {[%emt 0:00:51]} O-O {[%emt 0:02:42]} 10. dxc5 {[%emt 0:02:29]} Bxc5 {[%emt 1:10:19]} 11. Nc3 {[%emt 1:08:08]} Nc6 {[%emt 0:00:00]} 12. Rc1 {[%emt 0:00:00]} Bb4 {[%emt 0:00:00]} 13. Nb5 {[%emt 0:00:00]} Ne4 {[%emt 0:00:00]} 14. Nbd4 {[%emt 0:00:00]} Nxd4 {[%emt 0:00:00]} 15. Qxd4 {[%emt 0:00:00]} Qf6 {[%emt 0:00:00]} 16. Qxf6 {[%emt 0:00:00]} gxf6 {[%emt 0:00:00]} 17. Nd4 {[%emt 0:00:00]} Be6 {[%emt 0:00:00]} 18. Rc7 {[%emt 0:00:00]} Bd6 {[%emt 0:00:00]} 19. Rxb7 {[%emt 0:00:00]} Rfc8 {[%emt 0:00:00]} 20. Bf3 {[%emt 0:00:00]} Nc5 {[%emt 0:00:00]} 21. Rb5 {[%emt 0:00:00]} Kg7 {[%emt 0:00:00]} 22. Rd1 {[%emt 0:00:00]} Kg6 {[%emt 0:00:00]} 23. h3 {[%emt 0:00:00]} f5 {[%emt 0:00:00]} 24. Ba3 {[%emt 0:00:00]} Nb7 {[%emt 0:00:00]} 25. Rxb7 {[%emt 0:00:55]} Bxa3 {[%emt 0:00:00]} 26. Nb5 {[%emt 0:01:59]} Bc5 {[%emt 0:00:00]} 27. Nc7 {[%emt 0:00:15]} Rab8 {[%emt 0:00:00]} 28. Rxb8 {[%emt 0:00:18]} Rxb8 {[%emt 0:00:00]} 29. Bxd5 {[%emt 0:00:53]} Rd8 {[%emt 0:00:00]} 30. Bf3 {[%emt 0:00:06]} Rc8 {[%emt 0:00:00]} 31. Nd5 {[%emt 0:01:39]} Ba3 {[%emt 0:00:00]} 32. Rd2 {[%emt 0:00:49]} Bxd5 {[%emt 0:00:00]} 33. Bxd5 {[%emt 0:01:11]} f6 {[%emt 0:00:00]} 34. Bc4 {[%emt 0:00:16]} Rc7 {[%emt 0:00:00]} 35. Rd5 {[%emt 0:00:04]} f4 {[%emt 0:00:00]} 36. exf4 {[%emt 0:00:32]} Re7 {[%emt 0:00:00]} 37. g3 {[%emt 0:00:47]} Bb4 {[%emt 0:00:00]} 38. h4 {[%emt 0:00:51]} Re1+ {[%emt 0:00:00]} 39. Kg2 {[%emt 0:00:02]} Ra1 {[%emt 0:00:00]} 40. h5+ {[%emt 0:00:17]} Kg7 {[%emt 0:00:00]} 41. Rd7+ {[%emt 0:00:06]} Kh8 {[%emt 0:00:00]} 42. Rxa7 {[%emt 0:00:09]} Rb1 {[%emt 0:00:00]} 43. Kf3 {[%emt 0:00:55]} Rb2 {[%emt 0:00:00]} 44. Ke4 {[%emt 0:00:20]} Rxf2 {[%emt 0:00:00]} 45. Kf5 {[%emt 0:00:03]} Rg2 {[%emt 0:01:21]} 46. g4 {[%emt 0:00:07]} Bd6 {[%emt 0:00:17]} 47. Be6 {[%emt 0:00:27]} Re2 {[%emt 0:01:38]} 48. Kg6 {[%emt 0:00:09]} 1-0

[Event "10th LBHM Open 2024"]
[Site "Pune"]
[Date "2024.05.21"]
[Round "7.10"]
[White "Gorli Nyna"]
[Black "Badrinath, S.."]
[Result "1-0"]
[ECO "B22"]
[WhiteElo "1774"]
[BlackElo "2038"]
[PlyCount "133"]
[EventDate "2024.05.21"]
[EventType "swiss"]
[EventCountry "IND"]
[TimeControl "5400+30"]

1. e4 c5 {[%emt 0:09:23]} 2. c3 {[%emt 0:00:11]} Nf6 {[%emt 0:00:50]} 3. e5 {[%emt 0:00:07]} Nd5 {[%emt 0:00:04]} 4. Nf3 {[%emt 0:00:05]} d6 {[%emt 0:00:25]} 5. exd6 {[%emt 0:00:57]} e6 {[%emt 0:00:49]} 6. d4 {[%emt 0:01:21]} cxd4 {[%emt 0:00:45]} 7. Nxd4 {[%emt 0:00:55]} Bxd6 {[%emt 0:00:53]} 8. Bd3 {[%emt 0:01:18]} Nc6 {[%emt 0:01:21]} 9. Nxc6 {[%emt 0:07:27]} bxc6 {[%emt 0:00:03]} 10. O-O {[%emt 0:00:12]} O-O {[%emt 0:00:36]} 11. a3 {[%emt 0:01:42]} e5 {[%emt 0:04:43]} 12. c4 {[%emt 0:07:46]} Ne7 {[%emt 0:02:49]} 13. c5 {[%emt 0:11:55]} Bc7 {[%emt 0:04:09]} 14. Bc4 {[%emt 0:01:17]} Nd5 {[%emt 0:04:56]} 15. Re1 {[%emt 0:11:38]} Be6 {[%emt 0:03:44]} 16. Nd2 {[%emt 0:03:11]} h6 {[%emt 0:09:20]} 17. Nf3 {[%emt 0:07:21]} Qf6 {[%emt 0:04:21]} 18. h3 Rad8 {[%emt 0:04:13]} 19. Qe2 {[%emt 0:15:31]} Rfe8 {[%emt 0:01:48]} 20. Bd3 {[%emt 0:03:36]} Kf8 {[%emt 0:26:46]} 21. Be4 {[%emt 0:05:10]} Bc8 {[%emt 0:03:23]} 22. Qc2 {[%emt 0:02:01]} Qe6 {[%emt 0:02:53]} 23. Nh4 {[%emt 0:02:57]} Ne7 {[%emt 0:01:20]} 24. Qe2 {[%emt 0:05:26]} g5 {[%emt 0:02:24]} 25. Nf3 {[%emt 0:04:51]} f5 {[%emt 0:00:46]} 26. Bb1 {[%emt 0:00:24]} e4 {[%emt 0:01:19]} 27. Nh2 {[%emt 0:02:32]} Nd5 {[%emt 0:00:57]} 28. Qh5 {[%emt 0:01:14]} Qf6 {[%emt 0:03:10]} 29. h4 {[%emt 0:02:09]} Bf4 {[%emt 0:00:45]} 30. Ba2 {[%emt 0:00:37]} Bxc1 {[%emt 0:01:02]} 31. Raxc1 {[%emt 0:00:30]} Nf4 {[%emt 0:00:34]} 32. hxg5 {[%emt 0:00:04]} hxg5 {[%emt 0:01:16]} 33. Qh7 {[%emt 0:00:03]} Rd7 {[%emt 0:02:08]} 34. Ng4 {[%emt 0:01:07]} Rxh7 {[%emt 0:02:56]} 35. Nxf6 {[%emt 0:00:02]} Rhe7 {[%emt 0:00:31]} 36. Nxe8 {[%emt 0:00:18]} Kxe8 {[%emt 0:00:21]} 37. Bc4 {[%emt 0:00:22]} Be6 {[%emt 0:00:31]} 38. Ba6 {[%emt 0:00:26]} Bd5 {[%emt 0:00:28]} 39. Re3 {[%emt 0:00:32]} Ne6 {[%emt 0:00:45]} 40. Rh3 {[%emt 0:01:00]} f4 {[%emt 0:00:22]} 41. Kf1 {[%emt 0:01:23]} Kf7 {[%emt 0:00:35]} 42. b4 {[%emt 0:00:40]} Ke8 {[%emt 0:00:19]} 43. Rd1 {[%emt 0:00:45]} Nc7 {[%emt 0:00:31]} 44. Rh8+ {[%emt 0:00:28]} Kf7 {[%emt 0:00:20]} 45. Rh7+ {[%emt 0:00:31]} Kf6 {[%emt 0:00:07]} 46. Rxe7 {[%emt 0:00:07]} Kxe7 {[%emt 0:00:05]} 47. Be2 {[%emt 0:00:06]} f3 {[%emt 0:00:32]} 48. gxf3 {[%emt 0:00:10]} exf3 {[%emt 0:00:04]} 49. Bd3 {[%emt 0:00:05]} Kf6 {[%emt 0:00:36]} 50. Kg1 {[%emt 0:00:34]} Ne6 {[%emt 0:00:33]} 51. Bf1 {[%emt 0:00:27]} Ke5 {[%emt 0:00:19]} 52. Kh2 {[%emt 0:02:14]} Nd4 {[%emt 0:00:22]} 53. Rc1 {[%emt 0:00:19]} Kf4 {[%emt 0:00:18]} 54. Bc4 {[%emt 0:00:36]} Be4 {[%emt 0:00:51]} 55. a4 {[%emt 0:00:20]} Ne2 {[%emt 0:00:34]} 56. Re1 {[%emt 0:00:33]} Nc3 {[%emt 0:00:28]} 57. b5 {[%emt 0:00:12]} g4 {[%emt 0:01:46]} 58. b6 {[%emt 0:01:00]} axb6 {[%emt 0:00:17]} 59. cxb6 {[%emt 0:00:02]} c5 {[%emt 0:00:57]} 60. Rxe4+ {[%emt 0:00:10]} Nxe4 {[%emt 0:00:20]} 61. b7 {[%emt 0:00:03]} Nxf2 {[%emt 0:00:40]} 62. b8=Q+ {[%emt 0:00:10]} Ke3 {[%emt 0:00:06]} 63. a5 {[%emt 0:00:24]} Ne4 {[%emt 0:00:08]} 64. a6 {[%emt 0:00:46]} g3+ {[%emt 0:00:57]} 65. Qxg3 {[%emt 0:00:06]} Nxg3 {[%emt 0:00:11]} 66. Kxg3 {[%emt 0:00:02]} Kd4 {[%emt 0:00:12]} 67. Bf1 {[%emt 0:00:05]} 1-0

[Event "10th LBHM Open 2024"]
[Site "Pune"]
[Date "2024.05.21"]
[Round "8.1"]
[White "Ghosh, Diptayan"]
[Black "Dere Pushkar"]
[Result "1-0"]
[ECO "A09"]
[WhiteElo "2564"]
[BlackElo "2209"]
[PlyCount "85"]
[EventDate "2024.05.21"]
[EventType "swiss"]
[EventCountry "IND"]
[TimeControl "5400+30"]

1. Nf3 {[%emt 0:02:30]} d5 {[%emt 0:00:10]} 2. g3 {[%emt 0:00:06]} g6 {[%emt 0:00:07]} 3. c4 {[%emt 0:00:15]} dxc4 {[%emt 0:07:10]} 4. Na3 {[%emt 0:00:07]} Bg7 {[%emt 0:00:32]} 5. Nxc4 {[%emt 0:00:06]} Nc6 {[%emt 0:00:14]} 6. d3 {[%emt 0:00:06]} e5 {[%emt 0:00:58]} 7. Bd2 {[%emt 0:00:04]} Nge7 {[%emt 0:08:14]} 8. Bg2 {[%emt 0:00:06]} O-O {[%emt 0:01:03]} 9. b4 {[%emt 0:00:07]} a6 {[%emt 0:07:12]} 10. O-O {[%emt 0:00:13]} Be6 {[%emt 0:01:31]} 11. Rc1 {[%emt 0:00:05]} Rc8 {[%emt 0:02:56]} 12. a4 {[%emt 0:04:41]} Rb8 {[%emt 0:09:05]} 13. Ng5 {[%emt 0:34:29]} Bd5 {[%emt 0:01:18]} 14. Ne4 {[%emt 0:02:25]} f5 {[%emt 0:03:26]} 15. Nc5 {[%emt 0:00:42]} Bxg2 {[%emt 0:00:45]} 16. Kxg2 {[%emt 0:00:04]} Nc8 {[%emt 0:05:12]} 17. Kg1 {[%emt 0:03:07]} Qe7 {[%emt 0:01:17]} 18. b5 {[%emt 0:07:18]} axb5 {[%emt 0:00:46]} 19. axb5 {[%emt 0:00:08]} Nd4 {[%emt 0:01:16]} 20. Bb4 {[%emt 0:01:26]} Qe8 {[%emt 0:06:00]} 21. Nb3 {[%emt 0:01:44]} Rf7 {[%emt 0:01:06]} 22. Nxd4 {[%emt 0:00:52]} exd4 {[%emt 0:00:04]} 23. Qa4 {[%emt 0:02:17]} Bh6 {[%emt 0:06:59]} 24. Rc2 {[%emt 0:00:27]} f4 {[%emt 0:00:07]} 25. Bc5 {[%emt 0:03:39]} fxg3 {[%emt 0:00:18]} 26. hxg3 {[%emt 0:00:04]} Bg7 {[%emt 0:00:30]} 27. Qb3 {[%emt 0:05:15]} Qe6 28. Nd2 {[%emt 0:02:59]} Qxb3 {[%emt 0:08:41]} 29. Nxb3 {[%emt 0:00:03]} Rd7 {[%emt 0:04:39]} 30. Ra1 {[%emt 0:01:40]} b6 {[%emt 0:03:13]} 31. Bb4 {[%emt 0:00:05]} Kf7 {[%emt 0:00:26]} 32. Nd2 {[%emt 0:09:02]} Rb7 {[%emt 0:00:36]} 33. Ne4 {[%emt 0:00:54]} h6 {[%emt 0:00:51]} 34. Rca2 {[%emt 0:09:33]} Rd5 {[%emt 0:00:31]} 35. Ra8 {[%emt 0:00:04]} Rxb5 {[%emt 0:01:38]} 36. Rxc8 {[%emt 0:00:13]} Rxb4 {[%emt 0:00:06]} 37. Rc1 {[%emt 0:00:02]} Be5 {[%emt 0:00:26]} 38. Rc6 {[%emt 0:00:03]} Ra7 {[%emt 0:04:09]} 39. f4 {[%emt 0:00:22]} Bd6 {[%emt 0:00:34]} 40. Kf2 {[%emt 0:03:12]} Rb2 {[%emt 0:00:04]} 41. Kf3 {[%emt 0:00:46]} b5 {[%emt 0:00:19]} 42. Rh8 {[%emt 0:02:16]} Raa2 {[%emt 0:03:26]} 43. Rh7+ 1-0